[Event "Titled Tuesday Blitz December 06 Late 2022"]
[White "Korobov, Anton"]
[Black "Aggelis, Nikolaos"]
[WhiteFideId "14105730"]
[BlackFideId "4213220"]
[WhiteElo "2635"]
[BlackElo "2189"]
[Result "1-0"]
[Round "01"]
[TimeControl "180+1"]
[Date "2022.12.06"]
[WhiteClock "0:02:01"]
[BlackClock "0:00:15"]

1. d4 {[%clk 0:02:57]}  d5 {[%clk 0:02:56]} 2. c4 {[%clk 0:02:57]}  c6 {[%clk 0:02:56]} 3. Nc3 {[%clk 0:02:57]}  Nf6 {[%clk 0:02:56]} 4. cxd5 {[%clk 0:02:58]}  Nxd5 {[%clk 0:02:53]} 5. e4 {[%clk 0:02:56]}  Nxc3 {[%clk 0:02:53]} 6. bxc3 {[%clk 0:02:57]}  g6 {[%clk 0:02:53]} 7. Bc4 {[%clk 0:02:53]}  Bg7 {[%clk 0:02:53]} 8. Ne2 {[%clk 0:02:54]}  O-O {[%clk 0:02:53]} 9. O-O {[%clk 0:02:55]}  b5 {[%clk 0:02:54]} 10. Bb3 {[%clk 0:02:54]}  c5 {[%clk 0:02:54]} 11. Bd5 {[%clk 0:02:54]}  cxd4 {[%clk 0:02:51]} 12. cxd4 {[%clk 0:02:54]}  e5 {[%clk 0:02:42]} 13. Bxa8 {[%clk 0:02:53]}  exd4 {[%clk 0:02:42]} 14. Bd5 {[%clk 0:02:52]}  d3 {[%clk 0:02:42]} 15. Ba3 {[%clk 0:02:45]}  dxe2 {[%clk 0:02:42]} 16. Qxe2 {[%clk 0:02:46]}  Re8 {[%clk 0:02:36]} 17. Rad1 {[%clk 0:02:46]}  Qa5 {[%clk 0:02:29]} 18. Qf3 {[%clk 0:02:41]}  Be6 {[%clk 0:02:03]} 19. Bd6 {[%clk 0:02:40]}  Bxd5 {[%clk 0:01:58]} 20. exd5 {[%clk 0:02:39]}  Nd7 {[%clk 0:01:57]} 21. h4 {[%clk 0:02:38]}  Qb6 {[%clk 0:01:56]} 22. Bg3 {[%clk 0:02:36]}  Be5 {[%clk 0:01:44]} 23. Rfe1 {[%clk 0:02:36]}  Qd6 {[%clk 0:01:44]} 24. Re3 {[%clk 0:02:30]}  Rd8 {[%clk 0:01:41]} 25. Rde1 {[%clk 0:02:26]}  Bxg3 {[%clk 0:01:38]} 26. Qxg3 {[%clk 0:02:24]}  Qxg3 {[%clk 0:01:32]} 27. Re8+ {[%clk 0:02:24]}  Nf8 {[%clk 0:01:15]} 28. fxg3 {[%clk 0:02:23]}  Rxd5 {[%clk 0:01:15]} 29. Ra8 {[%clk 0:02:24]}  Kg7 {[%clk 0:01:14]} 30. Rxa7 {[%clk 0:02:24]}  h5 {[%clk 0:01:00]} 31. Ra5 {[%clk 0:02:19]}  Ne6 {[%clk 0:00:58]} 32. a4 {[%clk 0:02:18]}  Nd4 {[%clk 0:00:56]} 33. axb5 {[%clk 0:02:17]}  Rxb5 {[%clk 0:00:55]} 34. Rxb5 {[%clk 0:02:17]}  Nxb5 {[%clk 0:00:56]} 35. Kf2 {[%clk 0:02:17]}  Nd4 {[%clk 0:00:41]} 36. Re5 {[%clk 0:02:15]}  Kf6 {[%clk 0:00:37]} 37. Rd5 {[%clk 0:02:14]}  Nf5 {[%clk 0:00:37]} 38. Kf3 {[%clk 0:02:14]}  Nh6 {[%clk 0:00:37]} 39. Ke4 {[%clk 0:02:07]}  Ng4 {[%clk 0:00:37]} 40. Rd6+ {[%clk 0:02:06]}  Kg7 {[%clk 0:00:32]} 41. Ra6 {[%clk 0:02:07]}  Nf6+ {[%clk 0:00:31]} 42. Ke5 {[%clk 0:02:06]}  Ng4+ {[%clk 0:00:32]} 43. Kd6 {[%clk 0:02:06]}  Nh6 {[%clk 0:00:22]} 44. Ke7 {[%clk 0:02:02]}  Nf5+ {[%clk 0:00:21]} 45. Ke8 {[%clk 0:02:02]}  Nxg3 {[%clk 0:00:18]} 46. Ra7 {[%clk 0:02:02]}  Nf5 {[%clk 0:00:17]} 47. Rxf7+ {[%clk 0:02:02]}  Kh6 {[%clk 0:00:18]} 48. Rxf5 {[%clk 0:02:02]}  gxf5 {[%clk 0:00:18]} 49. Kf7 {[%clk 0:02:02]}  f4 {[%clk 0:00:15]} 50. Kf6 {[%clk 0:02:02]}  Kh7 {[%clk 0:00:16]} 51. Kg5 {[%clk 0:02:03]}  Kg7 {[%clk 0:00:15]} 52. Kxh5 {[%clk 0:02:01]} 1-0


[Site "https://www.chess.com"]

[Event "Titled Tuesday Blitz December 06 Late 2022"]
[White "Kowalczyk, Pawel"]
[Black "Sanchez, Robert"]
[WhiteFideId "1130641"]
[BlackFideId "2034360"]
[WhiteElo "2324"]
[BlackElo "2360"]
[Result "1-0"]
[Round "01"]
[TimeControl "180+1"]
[Date "2022.12.07"]
[WhiteClock "0:02:26"]
[BlackClock "0:00:45"]

1. a3 {[%clk 0:03:00]}  e5 {[%clk 0:02:58]} 2. b4 {[%clk 0:03:01]}  d5 {[%clk 0:02:58]} 3. Bb2 {[%clk 0:03:01]}  Bd6 {[%clk 0:02:58]} 4. e3 {[%clk 0:03:02]}  c6 {[%clk 0:02:58]} 5. c4 {[%clk 0:03:02]}  Nf6 {[%clk 0:02:58]} 6. Nf3 {[%clk 0:03:01]}  e4 {[%clk 0:02:57]} 7. Nd4 {[%clk 0:03:02]}  O-O {[%clk 0:02:56]} 8. Nc3 {[%clk 0:03:02]}  a6 {[%clk 0:02:55]} 9. cxd5 {[%clk 0:03:02]}  cxd5 {[%clk 0:02:55]} 10. d3 {[%clk 0:03:02]}  Qe7 {[%clk 0:02:50]} 11. dxe4 {[%clk 0:03:02]}  dxe4 {[%clk 0:02:50]} 12. Bc4 {[%clk 0:03:03]}  Nc6 {[%clk 0:02:48]} 13. Nxc6 {[%clk 0:03:02]}  bxc6 {[%clk 0:02:48]} 14. Qb3 {[%clk 0:03:02]}  Bf5 {[%clk 0:02:46]} 15. Ne2 {[%clk 0:03:02]}  a5 {[%clk 0:02:44]} 16. Nd4 {[%clk 0:03:01]}  Bd7 {[%clk 0:02:42]} 17. b5 {[%clk 0:03:02]}  c5 {[%clk 0:02:32]} 18. Ne2 {[%clk 0:02:57]}  a4 {[%clk 0:02:31]} 19. Qc2 {[%clk 0:02:57]}  Be5 {[%clk 0:02:24]} 20. O-O {[%clk 0:02:54]}  Bxh2+ {[%clk 0:02:22]} 21. Kxh2 {[%clk 0:02:54]}  Ng4+ {[%clk 0:02:23]} 22. Kg3 {[%clk 0:02:52]}  Qg5 {[%clk 0:02:12]} 23. f4 {[%clk 0:02:51]}  Qg6 {[%clk 0:02:03]} 24. Qc3 {[%clk 0:02:47]}  Nxe3+ {[%clk 0:01:37]} 25. Kf2 {[%clk 0:02:47]}  Nxf1 {[%clk 0:01:33]} 26. Rxf1 {[%clk 0:02:48]}  Bf5 {[%clk 0:01:22]} 27. Ng3 {[%clk 0:02:46]}  e3+ {[%clk 0:01:21]} 28. Qxe3 {[%clk 0:02:42]}  Be6 {[%clk 0:01:08]} 29. Bd3 {[%clk 0:02:39]}  f5 {[%clk 0:01:06]} 30. Re1 {[%clk 0:02:35]}  Rfe8 {[%clk 0:01:03]} 31. Qxc5 {[%clk 0:02:35]}  h5 {[%clk 0:00:56]} 32. Bxf5 {[%clk 0:02:34]}  Bxf5 {[%clk 0:00:55]} 33. Qxf5 {[%clk 0:02:33]}  Qb6+ {[%clk 0:00:51]} 34. Kf1 {[%clk 0:02:34]}  h4 {[%clk 0:00:48]} 35. Qd5+ {[%clk 0:02:32]}  Kh8 {[%clk 0:00:45]} 36. Rxe8+ {[%clk 0:02:25]}  Rxe8 {[%clk 0:00:45]} 37. Qh5+ {[%clk 0:02:26]}  Kg8 {[%clk 0:00:45]} 38. Qxe8+ {[%clk 0:02:26]} 1-0


[Site "https://www.chess.com"]

[Event "Titled Tuesday Blitz December 06 Late 2022"]
[White "Krishnan, Varun"]
[Black "Kovacevic, Radmila"]
[WhiteFideId "5054508"]
[BlackFideId "933171"]
[WhiteElo "2555"]
[BlackElo "2244"]
[Result "1-0"]
[Round "01"]
[TimeControl "180+1"]
[Date "2022.12.07"]
[WhiteClock "0:01:18"]
[BlackClock "0:00:14"]

1. d4 {[%clk 0:02:54]}  e5 {[%clk 0:03:00]} 2. dxe5 {[%clk 0:02:53]}  Nc6 {[%clk 0:03:00]} 3. Nf3 {[%clk 0:02:52]}  Qe7 {[%clk 0:03:00]} 4. Nc3 {[%clk 0:02:47]}  Nxe5 {[%clk 0:03:00]} 5. Bf4 {[%clk 0:02:37]}  Nxf3+ {[%clk 0:02:59]} 6. gxf3 {[%clk 0:02:38]}  c6 {[%clk 0:02:59]} 7. Qd2 {[%clk 0:02:37]}  d5 {[%clk 0:02:51]} 8. O-O-O {[%clk 0:02:33]}  Be6 {[%clk 0:02:24]} 9. e4 {[%clk 0:02:31]}  dxe4 {[%clk 0:02:04]} 10. Nxe4 {[%clk 0:02:27]}  Qb4 {[%clk 0:01:54]} 11. Qe3 {[%clk 0:02:20]}  Nf6 {[%clk 0:01:36]} 12. Nd6+ {[%clk 0:02:01]}  Bxd6 {[%clk 0:01:31]} 13. Bxd6 {[%clk 0:02:02]}  Qa4 {[%clk 0:01:28]} 14. Ba3 {[%clk 0:02:01]}  Nd5 {[%clk 0:01:16]} 15. Rxd5 {[%clk 0:01:53]}  cxd5 {[%clk 0:01:13]} 16. Qc5 {[%clk 0:01:53]}  Kd8 {[%clk 0:00:51]} 17. Bb5 {[%clk 0:01:38]}  Qf4+ {[%clk 0:00:49]} 18. Kb1 {[%clk 0:01:37]}  Qxf3 {[%clk 0:00:45]} 19. Re1 {[%clk 0:01:32]}  Qf6 {[%clk 0:00:21]} 20. Qd6+ {[%clk 0:01:22]}  Kc8 {[%clk 0:00:21]} 21. Bb4 {[%clk 0:01:21]}  Rd8 {[%clk 0:00:17]} 22. Qg3 {[%clk 0:01:21]}  a6 {[%clk 0:00:15]} 23. Ba5 {[%clk 0:01:20]}  axb5 {[%clk 0:00:14]} 24. Qc7# {[%clk 0:01:18]} 1-0


[Site "https://www.chess.com"]

[Event "Titled Tuesday Blitz December 06 Late 2022"]
[White "Liu, Kelsey"]
[Black "Sohal, Tanraj"]
[WhiteFideId "30944481"]
[BlackFideId "2608499"]
[WhiteElo "2271"]
[BlackElo "2203"]
[Result "1-0"]
[Round "01"]
[TimeControl "180+1"]
[Date "2022.12.07"]
[WhiteClock "0:00:51"]
[BlackClock "0:00:39"]

1. e4 {[%clk 0:02:57]}  d5 {[%clk 0:02:58]} 2. exd5 {[%clk 0:02:56]}  Qxd5 {[%clk 0:02:59]} 3. Nf3 {[%clk 0:02:56]}  Bg4 {[%clk 0:02:57]} 4. Be2 {[%clk 0:02:53]}  c5 {[%clk 0:02:57]} 5. Nc3 {[%clk 0:02:42]}  Qd7 {[%clk 0:02:57]} 6. Ne5 {[%clk 0:02:39]}  Bxe2 {[%clk 0:02:49]} 7. Qxe2 {[%clk 0:02:40]}  Qc7 {[%clk 0:02:44]} 8. Nd5 {[%clk 0:02:19]}  Qd6 {[%clk 0:02:42]} 9. Qb5+ {[%clk 0:02:14]}  Nc6 {[%clk 0:02:20]} 10. Nxc6 {[%clk 0:02:01]}  bxc6 {[%clk 0:02:00]} 11. Qb7 {[%clk 0:02:00]}  Rb8 {[%clk 0:01:57]} 12. Nc7+ {[%clk 0:02:00]}  Kd7 {[%clk 0:01:42]} 13. Qxb8 {[%clk 0:01:55]}  Qxc7 {[%clk 0:01:43]} 14. Qxf8 {[%clk 0:01:54]}  Qe5+ {[%clk 0:01:33]} 15. Kd1 {[%clk 0:01:53]}  Nh6 {[%clk 0:01:27]} 16. Qxh8 {[%clk 0:01:50]}  Ng4 {[%clk 0:01:26]} 17. Rf1 {[%clk 0:01:34]}  Nxh2 {[%clk 0:01:19]} 18. Qxh7 {[%clk 0:01:29]}  g6 {[%clk 0:01:09]} 19. Qh3+ {[%clk 0:01:28]}  f5 {[%clk 0:01:10]} 20. Re1 {[%clk 0:01:21]}  Qf4 {[%clk 0:01:08]} 21. Qd3+ {[%clk 0:01:19]}  Kc8 {[%clk 0:01:05]} 22. Qe3 {[%clk 0:01:11]}  Qg4+ {[%clk 0:00:59]} 23. f3 {[%clk 0:01:12]}  Qxg2 {[%clk 0:00:59]} 24. Qe6+ {[%clk 0:01:10]}  Kb8 {[%clk 0:00:56]} 25. Qg8+ {[%clk 0:01:08]}  Kb7 {[%clk 0:00:51]} 26. Rxe7+ {[%clk 0:01:08]}  Ka6 {[%clk 0:00:51]} 27. Qc8+ {[%clk 0:01:08]}  Kb5 {[%clk 0:00:49]} 28. Rb7+ {[%clk 0:01:05]}  Kc4 {[%clk 0:00:46]} 29. d3+ {[%clk 0:00:55]}  Kd5 {[%clk 0:00:42]} 30. Rd7+ {[%clk 0:00:51]}  Ke5 {[%clk 0:00:39]} 31. Qe8+ {[%clk 0:00:50]}  Kf6 {[%clk 0:00:39]} 32. Rf7# {[%clk 0:00:51]} 1-0


[Site "https://www.chess.com"]

[Event "Titled Tuesday Blitz December 06 Late 2022"]
[White "Mahdavi, Reza"]
[Black "Walentukiewicz, Michal"]
[WhiteFideId "12595926"]
[BlackFideId "1126903"]
[WhiteElo "2242"]
[BlackElo "2028"]
[Result "1-0"]
[Round "01"]
[TimeControl "180+1"]
[Date "2022.12.07"]
[WhiteClock "0:01:17"]
[BlackClock "0:01:45"]

1. d4 {[%clk 0:03:00]}  g6 {[%clk 0:02:59]} 2. e4 {[%clk 0:02:55]}  Bg7 {[%clk 0:02:59]} 3. Nc3 {[%clk 0:02:55]}  c5 {[%clk 0:03:00]} 4. d5 {[%clk 0:02:46]}  d6 {[%clk 0:03:00]} 5. Nf3 {[%clk 0:02:45]}  Nf6 {[%clk 0:03:00]} 6. Be2 {[%clk 0:02:43]}  O-O {[%clk 0:03:00]} 7. O-O {[%clk 0:02:43]}  e6 {[%clk 0:03:01]} 8. Bf4 {[%clk 0:02:42]}  exd5 {[%clk 0:03:01]} 9. exd5 {[%clk 0:02:43]}  Na6 {[%clk 0:03:01]} 10. h3 {[%clk 0:02:42]}  Nc7 {[%clk 0:03:01]} 11. a4 {[%clk 0:02:41]}  Rb8 {[%clk 0:03:01]} 12. Bh2 {[%clk 0:02:34]}  a6 {[%clk 0:03:01]} 13. a5 {[%clk 0:02:28]}  b5 {[%clk 0:03:01]} 14. axb6 {[%clk 0:02:29]}  Rxb6 {[%clk 0:03:02]} 15. Nd2 {[%clk 0:02:30]}  Rb4 {[%clk 0:02:58]} 16. Nc4 {[%clk 0:02:28]}  Nfe8 {[%clk 0:02:49]} 17. Na5 {[%clk 0:02:21]}  Bb7 {[%clk 0:02:43]} 18. Nxb7 {[%clk 0:02:18]}  Rxb7 {[%clk 0:02:43]} 19. Ra2 {[%clk 0:02:17]}  Nb5 {[%clk 0:02:38]} 20. Nxb5 {[%clk 0:02:14]}  axb5 {[%clk 0:02:37]} 21. Qd2 {[%clk 0:02:13]}  Nf6 {[%clk 0:02:30]} 22. Ra6 {[%clk 0:02:12]}  Rb6 {[%clk 0:02:25]} 23. Rfa1 {[%clk 0:02:10]}  Qb8 {[%clk 0:02:16]} 24. Bf3 {[%clk 0:02:01]}  Nd7 {[%clk 0:02:13]} 25. Rxb6 {[%clk 0:01:54]}  Qxb6 {[%clk 0:02:10]} 26. Qa5 {[%clk 0:01:53]}  Bxb2 {[%clk 0:02:01]} 27. Qxb6 {[%clk 0:01:52]}  Nxb6 {[%clk 0:02:01]} 28. Rb1 {[%clk 0:01:49]}  Nc4 {[%clk 0:01:59]} 29. Be2 {[%clk 0:01:48]}  Be5 {[%clk 0:01:59]} 30. Rxb5 {[%clk 0:01:18]}  Bxh2+ {[%clk 0:01:58]} 31. Kxh2 {[%clk 0:01:19]}  Ne5 {[%clk 0:01:50]} 32. Rb6 {[%clk 0:01:18]}  Rd8 {[%clk 0:01:50]} 33. f4 {[%clk 0:01:16]}  Nd7 {[%clk 0:01:43]} 34. Rxd6 {[%clk 0:01:15]}  Kf8 {[%clk 0:01:44]} 35. Bb5 {[%clk 0:01:15]}  Ke7 {[%clk 0:01:44]} 36. Rxd7+ {[%clk 0:01:15]}  Rxd7 {[%clk 0:01:44]} 37. Bxd7 {[%clk 0:01:16]}  Kxd7 {[%clk 0:01:45]} 38. c4 {[%clk 0:01:17]} 1-0


[Site "https://www.chess.com"]

[Event "Titled Tuesday Blitz December 06 Late 2022"]
[White "Marchesich, Giovanni"]
[Black "Goroshkov, Maksym"]
[WhiteFideId "2824790"]
[BlackFideId "14142716"]
[WhiteElo "2200"]
[BlackElo "2258"]
[Result "1-0"]
[Round "01"]
[TimeControl "180+1"]
[Date "2022.12.07"]
[WhiteClock "0:01:06"]
[BlackClock "0:01:56"]

1. Nf3 {[%clk 0:02:56]}  Nf6 {[%clk 0:03:00]} 2. e3 {[%clk 0:02:54]}  g6 {[%clk 0:03:00]} 3. b3 {[%clk 0:02:54]}  Bg7 {[%clk 0:03:00]} 4. Bb2 {[%clk 0:02:54]}  O-O {[%clk 0:03:01]} 5. c4 {[%clk 0:02:54]}  d5 {[%clk 0:03:01]} 6. cxd5 {[%clk 0:02:40]}  Nxd5 {[%clk 0:03:01]} 7. Bxg7 {[%clk 0:02:39]}  Nf6 {[%clk 0:03:02]} 8. Bxf8 {[%clk 0:02:36]}  Qxf8 {[%clk 0:03:03]} 9. Nc3 {[%clk 0:02:36]}  Nc6 {[%clk 0:03:00]} 10. Be2 {[%clk 0:02:35]}  e5 {[%clk 0:02:59]} 11. O-O {[%clk 0:02:35]}  Bf5 {[%clk 0:02:59]} 12. d3 {[%clk 0:02:34]}  Rd8 {[%clk 0:02:57]} 13. e4 {[%clk 0:02:34]}  Nxe4 {[%clk 0:02:56]} 14. Nxe4 {[%clk 0:02:31]}  Bxe4 {[%clk 0:02:56]} 15. a3 {[%clk 0:02:31]}  Bf5 {[%clk 0:02:56]} 16. Qc2 {[%clk 0:02:30]}  Qh6 {[%clk 0:02:54]} 17. b4 {[%clk 0:02:25]}  Qf4 {[%clk 0:02:44]} 18. Qd2 {[%clk 0:02:10]}  Qg4 {[%clk 0:02:33]} 19. Nxe5 {[%clk 0:02:07]}  Qd4 {[%clk 0:02:33]} 20. Nxc6 {[%clk 0:02:06]}  bxc6 {[%clk 0:02:34]} 21. Rfd1 {[%clk 0:02:05]}  c5 {[%clk 0:02:33]} 22. Qe3 {[%clk 0:02:04]}  Qf6 {[%clk 0:02:30]} 23. Qxc5 {[%clk 0:02:02]}  Rd4 {[%clk 0:02:30]} 24. Bf3 {[%clk 0:01:57]}  Rxd3 {[%clk 0:02:28]} 25. Rxd3 {[%clk 0:01:50]}  Bxd3 {[%clk 0:02:28]} 26. Rd1 {[%clk 0:01:47]}  Bf5 {[%clk 0:02:28]} 27. h3 {[%clk 0:01:44]}  Bxh3 {[%clk 0:02:27]} 28. Qd4 {[%clk 0:01:44]}  Qf5 {[%clk 0:02:25]} 29. Qd8+ {[%clk 0:01:43]}  Kg7 {[%clk 0:02:25]} 30. Qd3 {[%clk 0:01:43]}  Qg5 {[%clk 0:02:22]} 31. Qd4+ {[%clk 0:01:40]}  f6 {[%clk 0:02:21]} 32. g3 {[%clk 0:01:37]}  Qf5 {[%clk 0:02:20]} 33. Bg2 {[%clk 0:01:36]}  Bg4 {[%clk 0:02:20]} 34. Re1 {[%clk 0:01:34]}  g5 {[%clk 0:02:12]} 35. Qe4 {[%clk 0:01:28]}  Qc8 {[%clk 0:02:11]} 36. Qe7+ {[%clk 0:01:27]}  Kg6 {[%clk 0:02:10]} 37. Qe8+ {[%clk 0:01:27]}  Qxe8 {[%clk 0:02:10]} 38. Rxe8 {[%clk 0:01:28]}  h5 {[%clk 0:02:09]} 39. Ra8 {[%clk 0:01:28]}  h4 {[%clk 0:02:09]} 40. gxh4 {[%clk 0:01:28]}  gxh4 {[%clk 0:02:10]} 41. Rxa7 {[%clk 0:01:28]}  h3 {[%clk 0:02:10]} 42. Bh1 {[%clk 0:01:28]}  Kf5 {[%clk 0:02:07]} 43. Rxc7 {[%clk 0:01:28]}  Ke5 {[%clk 0:02:08]} 44. Rc3 {[%clk 0:01:27]}  Kd4 {[%clk 0:02:08]} 45. Rc1 {[%clk 0:01:25]}  Bd7 {[%clk 0:02:07]} 46. Kh2 {[%clk 0:01:23]}  Bb5 {[%clk 0:02:01]} 47. Kxh3 {[%clk 0:01:21]}  f5 {[%clk 0:02:02]} 48. f4 {[%clk 0:01:20]}  Ke3 {[%clk 0:02:01]} 49. a4 {[%clk 0:01:20]}  Bxa4 {[%clk 0:02:00]} 50. Bc6 {[%clk 0:01:20]}  Bb3 {[%clk 0:02:00]} 51. b5 {[%clk 0:01:20]}  Be6 {[%clk 0:01:57]} 52. b6 {[%clk 0:01:19]}  Bc8 {[%clk 0:01:58]} 53. b7 {[%clk 0:01:19]}  Bxb7 {[%clk 0:01:58]} 54. Bxb7 {[%clk 0:01:19]}  Kxf4 {[%clk 0:01:59]} 55. Bc8 {[%clk 0:01:18]}  Kg5 {[%clk 0:01:59]} 56. Bxf5 {[%clk 0:01:19]}  Kf4 {[%clk 0:01:58]} 57. Re1 {[%clk 0:01:14]}  Kf3 {[%clk 0:01:58]} 58. Bg4+ {[%clk 0:01:13]}  Kf4 {[%clk 0:01:58]} 59. Rf1+ {[%clk 0:01:12]}  Ke4 {[%clk 0:01:57]} 60. Kg3 {[%clk 0:01:12]}  Ke5 {[%clk 0:01:57]} 61. Re1+ {[%clk 0:01:12]}  Kf6 {[%clk 0:01:57]} 62. Kf4 {[%clk 0:01:12]}  Kf7 {[%clk 0:01:57]} 63. Re6 {[%clk 0:01:11]}  Kg7 {[%clk 0:01:57]} 64. Kg5 {[%clk 0:01:11]}  Kf7 {[%clk 0:01:57]} 65. Kf5 {[%clk 0:01:11]}  Kg7 {[%clk 0:01:57]} 66. Bh5 {[%clk 0:01:11]}  Kh7 {[%clk 0:01:56]} 67. Kg5 {[%clk 0:01:08]}  Kg7 {[%clk 0:01:56]} 68. Re7+ {[%clk 0:01:09]}  Kf8 {[%clk 0:01:56]} 69. Ra7 {[%clk 0:01:08]}  Kg8 {[%clk 0:01:56]} 70. Kf6 {[%clk 0:01:06]}  Kh8 {[%clk 0:01:56]} 71. Kg6 {[%clk 0:01:05]}  Kg8 {[%clk 0:01:56]} 72. Ra8# {[%clk 0:01:06]} 1-0


[Site "https://www.chess.com"]

[Event "Titled Tuesday Blitz December 06 Late 2022"]
[White "Marcolino, Daniel Mattos"]
[Black "Domingo Nunez, Ruben"]
[WhiteFideId "2106841"]
[BlackFideId "22245570"]
[WhiteElo "2149"]
[BlackElo "2406"]
[Result "0-1"]
[Round "01"]
[TimeControl "180+1"]
[Date "2022.12.07"]
[WhiteClock "0:00:08"]
[BlackClock "0:00:18"]

1. d4 {[%clk 0:03:00]}  g6 {[%clk 0:03:00]} 2. Nf3 {[%clk 0:03:01]}  Bg7 {[%clk 0:03:01]} 3. g3 {[%clk 0:03:01]}  Nf6 {[%clk 0:03:01]} 4. Bg2 {[%clk 0:03:01]}  O-O {[%clk 0:03:02]} 5. O-O {[%clk 0:03:02]}  d6 {[%clk 0:03:03]} 6. b3 {[%clk 0:03:02]}  Nbd7 {[%clk 0:03:03]} 7. Bb2 {[%clk 0:03:02]}  c5 {[%clk 0:03:04]} 8. c4 {[%clk 0:03:00]}  Rb8 {[%clk 0:03:05]} 9. Nc3 {[%clk 0:02:54]}  a6 {[%clk 0:03:05]} 10. a4 {[%clk 0:02:54]}  b6 {[%clk 0:03:05]} 11. Qc2 {[%clk 0:02:50]}  Ne8 {[%clk 0:03:06]} 12. Rad1 {[%clk 0:02:40]}  Nc7 {[%clk 0:03:06]} 13. Rfe1 {[%clk 0:02:37]}  b5 {[%clk 0:03:06]} 14. axb5 {[%clk 0:02:34]}  axb5 {[%clk 0:03:06]} 15. dxc5 {[%clk 0:02:24]}  Nxc5 {[%clk 0:02:59]} 16. b4 {[%clk 0:02:16]}  N5a6 {[%clk 0:02:59]} 17. Nxb5 {[%clk 0:01:18]}  Bxb2 {[%clk 0:02:54]} 18. Qxb2 {[%clk 0:01:18]}  Nxb5 {[%clk 0:02:54]} 19. cxb5 {[%clk 0:01:18]}  Rxb5 {[%clk 0:02:55]} 20. Rd4 {[%clk 0:01:05]}  Qb6 {[%clk 0:02:49]} 21. Red1 {[%clk 0:00:59]}  Rxb4 {[%clk 0:02:23]} 22. Rxb4 {[%clk 0:00:59]}  Qxb4 {[%clk 0:02:24]} 23. Qxb4 {[%clk 0:00:57]}  Nxb4 {[%clk 0:02:25]} 24. Nd4 {[%clk 0:00:55]}  Bd7 {[%clk 0:02:23]} 25. Rb1 {[%clk 0:00:53]}  Rc8 {[%clk 0:02:14]} 26. Bb7 {[%clk 0:00:43]}  Rc4 {[%clk 0:02:12]} 27. e3 {[%clk 0:00:36]}  e5 {[%clk 0:02:03]} 28. Nf3 {[%clk 0:00:25]}  Bf5 {[%clk 0:01:35]} 29. Rb2 {[%clk 0:00:16]}  Nd3 {[%clk 0:01:28]} 30. Rd2 {[%clk 0:00:14]}  Bh3 {[%clk 0:01:23]} 31. Rd1 {[%clk 0:00:12]}  Rb4 {[%clk 0:01:07]} 32. Ng5 {[%clk 0:00:12]}  Bg4 {[%clk 0:00:37]} 33. f3 {[%clk 0:00:12]}  Rxb7 {[%clk 0:00:28]} 34. Rxd3 {[%clk 0:00:12]}  Rb1+ {[%clk 0:00:28]} 35. Kf2 {[%clk 0:00:12]}  Rb2+ {[%clk 0:00:29]} 36. Ke1 {[%clk 0:00:12]}  Bf5 {[%clk 0:00:17]} 37. Rxd6 {[%clk 0:00:11]}  h6 {[%clk 0:00:18]} 38. Ne4 {[%clk 0:00:09]}  Bxe4 {[%clk 0:00:16]} 39. fxe4 {[%clk 0:00:10]}  Rxh2 {[%clk 0:00:16]} 40. Rd7 {[%clk 0:00:09]}  Kg7 {[%clk 0:00:16]} 41. Re7 {[%clk 0:00:09]}  Kf6 {[%clk 0:00:16]} 42. Ra7 {[%clk 0:00:10]}  Rg2 {[%clk 0:00:17]} 43. Ra6+ {[%clk 0:00:09]}  Kg7 {[%clk 0:00:16]} 44. Ra5 {[%clk 0:00:09]}  Kf6 {[%clk 0:00:16]} 45. Ra6+ {[%clk 0:00:09]}  Kg5 {[%clk 0:00:17]} 46. Ra5 {[%clk 0:00:09]}  f6 {[%clk 0:00:17]} 47. Ra6 {[%clk 0:00:09]}  Rxg3 {[%clk 0:00:18]} 48. Kf2 {[%clk 0:00:10]}  Rg4 {[%clk 0:00:18]} 49. Kf3 {[%clk 0:00:10]}  Rg1 {[%clk 0:00:19]} 50. Rb6 {[%clk 0:00:09]}  h5 {[%clk 0:00:19]} 51. Rb2 {[%clk 0:00:09]}  h4 {[%clk 0:00:19]} 52. Rh2 {[%clk 0:00:08]}  Rg3+ {[%clk 0:00:20]} 53. Kf2 {[%clk 0:00:08]}  Kg4 {[%clk 0:00:20]} 54. Ke2 {[%clk 0:00:07]}  h3 {[%clk 0:00:19]} 55. Kf2 {[%clk 0:00:07]}  Rg2+ {[%clk 0:00:18]} 56. Rxg2+ {[%clk 0:00:08]}  hxg2 {[%clk 0:00:18]} 57. Kxg2 {[%clk 0:00:08]}  f5 {[%clk 0:00:18]} 0-1


[Site "https://www.chess.com"]

[Event "Titled Tuesday Blitz December 06 Late 2022"]
[White "Martinez Alcantara, Jose Eduardo"]
[Black "Adewumi, Tanitoluwa"]
[WhiteFideId "3805662"]
[BlackFideId "30966396"]
[WhiteElo "2707"]
[BlackElo "2539"]
[Result "1-0"]
[Round "01"]
[TimeControl "180+1"]
[Date "2022.12.06"]
[WhiteClock "0:01:18"]
[BlackClock "0:00:04"]

1. e4 {[%clk 0:03:00]}  c5 {[%clk 0:02:55]} 2. Nf3 {[%clk 0:03:00]}  e6 {[%clk 0:02:54]} 3. c3 {[%clk 0:03:00]}  Nf6 {[%clk 0:02:52]} 4. Bd3 {[%clk 0:03:00]}  Nc6 {[%clk 0:02:49]} 5. Bc2 {[%clk 0:02:59]}  e5 {[%clk 0:02:45]} 6. d3 {[%clk 0:02:59]}  d6 {[%clk 0:02:43]} 7. Bg5 {[%clk 0:02:58]}  Be7 {[%clk 0:02:42]} 8. Nbd2 {[%clk 0:02:55]}  O-O {[%clk 0:02:42]} 9. Bxf6 {[%clk 0:02:50]}  Bxf6 {[%clk 0:02:41]} 10. Nc4 {[%clk 0:02:51]}  Be6 {[%clk 0:02:39]} 11. Ne3 {[%clk 0:02:51]}  Bg5 {[%clk 0:02:39]} 12. Nxg5 {[%clk 0:02:44]}  Qxg5 {[%clk 0:02:38]} 13. h4 {[%clk 0:02:45]}  Qf6 {[%clk 0:02:36]} 14. Bb3 {[%clk 0:02:43]}  Rad8 {[%clk 0:02:35]} 15. Qf3 {[%clk 0:02:39]}  Qxf3 {[%clk 0:02:35]} 16. gxf3 {[%clk 0:02:40]}  a6 {[%clk 0:02:32]} 17. Ke2 {[%clk 0:02:39]}  h5 {[%clk 0:02:28]} 18. Rhg1 {[%clk 0:02:38]}  Ne7 {[%clk 0:02:24]} 19. Rg5 {[%clk 0:02:30]}  Bxb3 {[%clk 0:02:09]} 20. axb3 {[%clk 0:02:29]}  g6 {[%clk 0:01:51]} 21. Nc4 {[%clk 0:02:26]}  f6 {[%clk 0:01:48]} 22. Rgg1 {[%clk 0:02:25]}  Kf7 {[%clk 0:01:48]} 23. Ra5 {[%clk 0:02:10]}  Nc6 {[%clk 0:01:38]} 24. Raa1 {[%clk 0:02:09]}  Ne7 {[%clk 0:01:37]} 25. Ne3 {[%clk 0:02:09]}  Ke6 {[%clk 0:01:29]} 26. Ra4 {[%clk 0:02:08]}  f5 {[%clk 0:01:11]} 27. b4 {[%clk 0:02:04]}  fxe4 {[%clk 0:00:52]} 28. fxe4 {[%clk 0:02:02]}  Rf4 {[%clk 0:00:39]} 29. Rh1 {[%clk 0:02:02]}  Rdf8 {[%clk 0:00:37]} 30. Rh2 {[%clk 0:02:02]}  cxb4 {[%clk 0:00:32]} 31. Rxb4 {[%clk 0:02:00]}  b5 {[%clk 0:00:32]} 32. Rb3 {[%clk 0:02:01]}  Ra8 {[%clk 0:00:24]} 33. Ra3 {[%clk 0:02:01]}  a5 {[%clk 0:00:24]} 34. Nf1 {[%clk 0:01:37]}  Nc6 {[%clk 0:00:17]} 35. Ne3 {[%clk 0:01:36]}  b4 {[%clk 0:00:17]} 36. Ra4 {[%clk 0:01:27]}  bxc3 {[%clk 0:00:14]} 37. bxc3 {[%clk 0:01:28]}  Rb8 {[%clk 0:00:14]} 38. Ra2 {[%clk 0:01:23]}  Ne7 {[%clk 0:00:10]} 39. Nc4 {[%clk 0:01:18]}  d5 {[%clk 0:00:06]} 40. Nd2 {[%clk 0:01:18]}  dxe4 {[%clk 0:00:04]} 41. Nxe4 {[%clk 0:01:19]}  Nd5 {[%clk 0:00:04]} 42. Kd2 {[%clk 0:01:20]}  Rf3 {[%clk 0:00:04]} 43. Ng5+ {[%clk 0:01:18]} 1-0


[Site "https://www.chess.com"]